Cogmind - Beta 13 @@@ ROGUE MODE // 2024.07.03 @ 14:40:45 Player: Jetpackmatt9 Result: Destroyed by G-34 Mercenary with Small Laser Performance ------------- Evolutions (1) 500 Regions Visited (2) 400 Robots Destroyed (43) 215 Value Destroyed (881) 881 Prototype IDs (0) 0 Alien Tech Used (0) 0 Bonus (88) 88 TOTAL SCORE: 2084 Bonus ------- High Alert Combat Kills 88 Cogmind --------- Core Integrity 0/400 Matter 22/300 Energy 98/100 System Corruption 0% Temperature Cool (6) Movement Treading (170) Location -9/Materials Parts ------- > --- POWER (1) -------- (None) > --- PROPULSION (2) --- Armored Treads Armored Treads > --- UTILITY (4) ------ Medium Storage Unit Improved Sensor Array Signal Interpreter > --- WEAPON (2) ------- Maul > --- INVENTORY (10) --- Armored Treads Armored Treads Visual Processing Unit Shield Generator Tractor Beam Assault Rifle Light Assault Rifle Autogun Mini Grenade Launcher Peak State ------------ > --- POWER ------------ Light Ion Engine > --- PROPULSION ------- Armored Treads Armored Treads > --- UTILITY ---------- Medium Storage Unit Improved Sensor Array Signal Interpreter > --- WEAPON ----------- Maul > --- INVENTORY -------- Light Treads Light Treads Visual Processing Unit Shield Generator Tractor Beam Assault Rifle Light Assault Rifle Autogun Mini Grenade Launcher [Rating: 15] Favorites ----------- Power Ion Engine Engine Ion Engine Propulsion Light Treads Treads Light Treads Utility Medium Storage Unit Device Tractor Beam Storage Medium Storage Unit Processor Signal Interpreter Weapon Assault Rifle Ballistic Gun Assault Rifle Launcher Grenade Launcher Impact Weapon Maul Build | -11 -10 -9 ------- Run | Yrd Mat Mat Slots Evolved 2 | . . 2 Power . | . . . Propulsion . | . . . Utility 2 | . . 2 Weapon . | . . . Parts Attached 26 | 6 4 16 Power 5 | 1 . 4 Engine 5 | 1 . 4 Core . | . . . Reactor . | . . . Propulsion 6 | 2 . 4 Treads 6 | 2 . 4 Leg . | . . . Wheel . | . . . Hover . | . . . Flight . | . . . Utility 7 | 1 2 4 Device 3 | . 1 2 Storage 2 | 1 1 . Processor 2 | . . 2 Hackware . | . . . Protection . | . . . Artifact . | . . . Weapon 8 | 2 2 4 Energy Gun . | . . . Energy Cannon . | . . . Ballistic Gun 4 | 2 1 1 Ballistic Cannon . | . . . Launcher 3 | . 1 2 Special Weapon . | . . . Impact Weapon 1 | . . 1 Slashing Weapon . | . . . Piercing Weapon . | . . . Special Melee Weapon . | . . . Unidentified Prototypes . | . . . Parts Lost 10 | . . 10 Power 4 | . . 4 Propulsion 2 | . . 2 Utility 1 | . . 1 Weapon 3 | . . 3 Highest Loss Streak 3 | . . 3 To Critical Strikes . | . . . Average Slot Usage (%) 91 | . 97 85 Engine 10 | . 14 7 Treads 24 | . 28 20 Device 11 | . 12 11 Storage 12 | . 14 11 Processor 7 | . . 15 Ballistic Gun 16 | . 27 4 Launcher 4 | . . 8 Impact Weapon 3 | . . 6 Naked Turns . | . . . Heaviest Build 22 | 14 21 22 Greatest Support 40 | 40 40 40 Greatest Overweight (x) 4 | . . 4 Average Overweight (x) . | . . . Largest Inventory Capacity 10 | 8 10 10 Average Capacity 9 | 7 8 10 Most Carried 10 | 1 10 10 Average Carried 7 | . 6 8 Final Capacity 10 | 8 10 10 Final Carried 10 | 1 10 9 Class Distribution -------------------- 100% | Mutant Dominant Class ---------------- Mutant | -10/Materials Mutant | -9/Materials Resources | -11 -10 -9 ----------- Run | Yrd Mat Mat Matter Collected 632 | 260 184 188 Remotely 184 | . 184 . Salvage Created 668 | . 260 408 Parts 71 | . 29 42 Haulers Intercepted . | . . . Recyclers Shooed 1 | . . 1 Parts Field Recycled . | . . . Retrieved Matter . | . . . Parts Self-Destructed . | . . . Prevented . | . . . Kills | -11 -10 -9 ------- Run | Yrd Mat Mat Combat Hostiles Destroyed 34 | . 9 25 Melee 4 | . . 4 Guns 7 | . 7 . AOE 19 | . 2 17 Classes Destroyed 6 | . 3 3 Worker 3 | . . 3 Builder 1 | . . 1 Watcher 5 | . 3 2 Swarmer 21 | . 6 15 Grunt 8 | . 3 5 Sentry 5 | . . 5 Best Kill Streak 5 | . 4 5 Combat Bots Only 5 | . 4 5 Max Kills in Single Turn 4 | . 2 4 Gunslinging . | . . . Exploded 4 | . 2 4 Melee 1 | . . 1 Uniques/NPCs Destroyed . | . . . Combat | -11 -10 -9 -------- Run | Yrd Mat Mat Hostile Shots Fired 194 | . 35 159 Missed 49 | . 8 41 Damage Taken 1823 | . 273 1550 Core 429 | . 29 400 Absorbed by Shields . | . . . Core Remaining (%) 94 | 100 88 . Volleys Fired 53 | . 26 27 Largest 2 | . 2 2 Hottest 60 | . 50 60 Shots Fired 92 | . 51 41 Gun 60 | . 50 10 Cannon . | . . . Launcher 32 | . 1 31 Special . | . . . Kinetic 60 | . 50 10 Thermal . | . . . Explosive 32 | . 1 31 Electromagnetic . | . . . Robot Hit Streak 7 | . 6 7 Robot Miss Streak 4 | . 4 4 Penetration Max . | . . . Secondary Targets . | . . . Shots Hit Robots 76 | . 27 49 Core Hits 53 | . 16 37 Critical Kills 1 | . . 1 Critical Parts Destroyed 7 | . . 7 Critical Strikes 8 | . . 8 Smash 8 | . . 8 Melee Attacks 44 | . . 44 Impact 44 | . . 44 Slashing . | . . . Piercing . | . . . Sneak Attacks 3 | . . 3 Combat Hostiles . | . . . Follow-up Attacks . | . . . Damage Inflicted 2763 | . 444 2319 Guns 356 | . 331 25 Cannons . | . . . Explosions 1320 | . 112 1208 Melee 1084 | . . 1084 Ramming 3 | . 1 2 Kinetic 356 | . 331 25 Thermal . | . . . Explosive 1320 | . 112 1208 Electromagnetic . | . . . Impact 1084 | . . 1084 Slashing . | . . . Piercing . | . . . Highest Corruption . | . . . Average Corruption . | . . . Corruption Purged . | . . . Corruption Blocked . | . . . Overload Shots . | . . . Overflow Damage 602 | . 1 601 Projectiles 2 | . . 2 Explosions 204 | . 1 203 Melee 396 | . . 396 Knockbacks 9 | . . 9 Impact 7 | . . 7 Kinetic . | . . . Secondary 2 | . . 2 Self-Inflicted Damage 202 | . . 202 Shots 4 | . . 4 Rammed 2 | . 1 1 Targets Rammed 2 | . 1 1 Kicked . | . . . Crushed . | . . . Highest Temperature 36 | . 2 36 Average Temperature 15 | . 2 19 Received Heat Transfer 486 | . 69 417 Siege Activations . | . . . Robots Corrupted . | . . . Combat Hostiles . | . . . Parts Fried 8 | . . 8 Impact Corruptions 17 | . . 17 Robots Melted . | . . . Combat Hostiles . | . . . Parts Melted . | . . . Heat Transferred . | . . . Parts Sabotaged . | . . . Parts Stolen . | . . . Parts Stripped . | . . . Power Chain Reactions . | . . . Alert | -11 -10 -9 ------- Run | Yrd Mat Mat Peak Influence 716 | . 129 716 Initial 32 | . . 32 Average 250 | . 31 489 Maximum Alert Level 3 | . . 3 Low Security (%) 56 | 100 100 9 Level 1 6 | . . 13 Level 2 35 | . . 72 Level 3 2 | . . 4 Level 4 . | . . . Level 5 . | . . . High Security . | . . . Max Security . | . . . Squads Dispatched 3 | . 1 2 Investigation . | . . . Extermination . | . . . Reinforcement 3 | . 1 2 Assault . | . . . Garrison . | . . . Intercept . | . . . Searches Triggered . | . . . Construction Impeded . | . . . Haulers Reinforced . | . . . Active Scanning Responses . | . . . Cargo Convoy Interrupts . | . . . Stealth | -11 -10 -9 --------- Run | Yrd Mat Mat Distress Signals 2 | . . 2 Communications Jammed . | . . . Distress Signals . | . . . Times Spotted 55 | . 19 36 Peak Tracking Total 7 | . 6 7 Tactical Retreats 4 | . 1 3 Traps | -11 -10 -9 ------- Run | Yrd Mat Mat Traps Triggered . | . . . Indirectly . | . . . Trap Hack Attempts . | . . . Triggered . | . . . Disarmed . | . . . Reprogrammed . | . . . Reused . | . . . Traps Extracted . | . . . Installed . | . . . Triggered . | . . . Machines | -11 -10 -9 ---------- Run | Yrd Mat Mat Machines Disabled 6 | . . 6 Max in Single Turn 3 | . . 3 Machines Repaired . | . . . Machines Dismantled . | . . . Machines Sabotaged . | . . . Overloaded Fab Kills . | . . . Hacking | -11 -10 -9 --------- Run | Yrd Mat Mat Machines Accessed 6 | . 4 2 Terminals 6 | . 4 2 Fabricators . | . . . Repair Stations . | . . . Recycling Units . | . . . Scanalyzers . | . . . Garrison Access . | . . . Total Hacks 13 | . 11 2 Successful 5 | . 4 1 Failed 8 | . 7 1 Catastrophic 3 | . 2 1 Database Lockouts . | . . . Manual 3 | . 2 1 Terminals 13 | . 11 2 Fabricators . | . . . Repair Stations . | . . . Recycling Units . | . . . Scanalyzers . | . . . Garrison Access . | . . . Terminal Hacks 5 | . 4 1 Emergency Access Points 1 | . 1 . Alert Level 1 | . 1 . Locate Traps 2 | . 1 1 Disarm Traps 1 | . 1 . Fabricator Hacks . | . . . Repair Station Hacks . | . . . Recycling Unit Hacks . | . . . Scanalyzer . | . . . Garrison Access Hacks . | . . . Unauthorized Hacks . | . . . Terminals . | . . . Fabricators . | . . . Repair Stations . | . . . Recycling Units . | . . . Scanalyzers . | . . . Garrison Access . | . . . Data Cores Recovered . | . . . Used . | . . . Hacking Detections 6 | . 4 2 Full Trace Events 3 | . 3 . Feedback Events . | . . . Feedback Blocked . | . . . Robot Schematics Acquired . | . . . Robots Built . | . . . Authchips . | . . . Time . | . . . Total Robot Build Rating . | . . . Part Schematics Acquired . | . . . Parts Built . | . . . Authchips . | . . . Time . | . . . Total Part Build Rating . | . . . Parts Repaired . | . . . Time . | . . . Parts Recycled . | . . . Recycled Matter . | . . . Retrieved Matter . | . . . Retrieved Components . | . . . Parts Scanalyzed . | . . . Part Schematics Acquired . | . . . Parts Damaged . | . . . Bothacking | -11 -10 -9 ------------ Run | Yrd Mat Mat Used RIF Installer . | . . . Robots Hacked . | . . . Non-combat . | . . . Combat . | . . . Robot Hacks Applied . | . . . Relay Couplers Released . | . . . Fabnet Peak Effective % . | . . . Robots Rewired . | . . . Allies Hacked . | . . . Hacks Repelled . | . . . Allies | -11 -10 -9 -------- Run | Yrd Mat Mat Total Allies . | . . . Largest Group . | . . . Highest-Rated Group . | . . . Highest-Rated Ally . | . . . Total Orders . | . . . Ally Attacks . | . . . Total Damage . | . . . Kills . | . . . Allies Corrupted . | . . . Allies Melted . | . . . Intel | -11 -10 -9 ------- Run | Yrd Mat Mat Robot Analysis Total . | . . . Derelict Logs Recovered . | . . . Drone Launches . | . . . Drone Recoveries . | . . . Exploration | -11 -10 -9 ------------- Run | Yrd Mat Mat Turns Passed 2109 | 83 1011 1015 Spaces Moved 1076 | 49 562 465 Core 8 | 4 . 4 Treads 1068 | 45 562 461 Legs . | . . . Wheels . | . . . Hover . | . . . Flight . | . . . Fastest Speed 50 | 50 160 160 Average Speed 160 | 151 160 161 Slowest Speed 250 | 160 160 250 Overloaded Moves . | . . . Propulsion Burnouts . | . . . Robots Hopped . | . . . Cave-ins Triggered . | . . . Exploration Rate (%) 40 | 3 68 50 Regions Visited 2 Branch Regions . Pre-discovered Areas . | . . . Known Exits Taken . | . . . Unknown Exits Taken 2 | 1 1 . Scrap Searched . | . . . Spaces Dug 1 | . . 1 Terrain Destroyed 195 | . 8 187 Melee 1 | . . 1 Projectile . | . . . AOE 194 | . 8 186 Terrain Rammed . | . . . Walls Destroyed . | . . . Machines Disabled . | . . . Actions | -11 -10 -9 --------- Run | Yrd Mat Mat Total 1278 | 55 622 601 Wait 50 | . 16 34 Move 1074 | 48 561 465 Hop . | . . . Pick Up 20 | 1 11 8 Fast Attach 7 | 6 1 . Attach 11 | . . 11 Detach 2 | . . 2 Swap 8 | . 3 5 Drop 7 | . 3 4 Fire 53 | . 26 27 Melee 44 | . . 44 Ram . | . . . Kick . | . . . Crush 2 | . 1 1 Escape Stasis . | . . . Rewire . | . . . Trap . | . . . Miscellaneous . | . . . Route ------- -11/Scrapyard -10/Materials (discovered 2 exits: *Mat x2) -9/Materials History --------- Turn | Location | Event 5 | -11/Scrapyard | Discovered new exit (range 16) 84 | -11/Scrapyard | Entered Materials 304 | -10/Materials | Build established: Mutant 863 | -10/Materials | Discovered new exit (range 16) 1083 | -10/Materials | Discovered new exit (range 7) 1095 | -10/Materials | Entered another Materials area 1095 | -9/Materials | Evolved 2 slots: Utility x2 1543 | -9/Materials | Lost 3 parts (1n1u1w) 1586 | -9/Materials | Lost 3 parts (1p1n1w) 1761 | -9/Materials | Core integrity fell below 50% 1919 | -9/Materials | Core integrity fell below 20% 2110 | -9/Materials | Destroyed by G-34 Mercenary with Small Laser Last Messages --------------- 02032_ G-34 Mercenary system corrupted by crushing effect. 02032_ Aluminum Leg fried. 02032_ G-34 Mercenary destroyed. 02033_ K-01 Serf collects debris. 02039_ G-47 Trooper suffers critical hit (Smash). 02039_ G-47 Trooper destroyed. 02040_ K-01 Serf collects debris. 02042_ G-34 Mercenary suffers critical hit (Smash). 02042_ Destroyed Sml. Laser. 02042_ G-34 Mercenary system corrupted by crushing effect. 02044_ K-01 Serf collects debris. 02080_ ALERT: Hostiles spotted, dispatching reinforcements to Terminal M002. 02106_ Destroyed Heat Sink. 02106_ G-34 Mercenary system corrupted by crushing effect. 02106_ G-34 Mercenary knocked back. 02107_ G-34 Mercenary system terminally corrupted. 02107_ Sml. Laser fried. 02107_ Aluminum Leg fried. 02109_ G-34 Mercenary knocked back. Map ----- +----------------------------------------------------+ | ?????????????####????????????# #####????????# "" | | ?????????????? ???????????# #????????????# "" | | ???????????????? ??????????#% %#????????????# "" | | ?????????????????? ?????????# #????????????# | | ??????????????######/######??# % #????????????#### | | ??????????????# #??# #????????#####??# | | ??????????????# ! #### #????????#!! #### | | ??????????????# / #????????#!! | | ??????????????# """ # #????????#!! #### | | ??????????????? """ # +????????#!! #??? | | ??????????????? """ "T" # #????????#!! #??? | | ??????????????? """ # #???????##!! ##?# | | ??????????????############# #??????## ### | | ??????????????????????????# #??????# # ## | | ??????????????????????????# #??????# ## | | ???????????????????????#### #??????# # | | ???????????????????????# +??????# # | | ???????????????????????# #??????## # | | ???????????????????????# #??????# " ## | | ???????????????????????# #??????## " ## | | ???????????????????????# #####???????# "" # | | ???????????????????????# a #???????????# """ + | | ?????????????#+#+#######o #???????????# "" # | | ?????????????# #???????????# """ =## | | ?????????????# #???????????# """ ## | | ?????????????+ @ g #???????????# """ ## | | ?????????????# " """"" T#??????????# " ## | | ?????????????# T """"" ##??????????# ## | | ?????????????# " """"" #???????????######### | | ?????????????+ #???????????????????# | | ?????????????# #???????????????????# | | ?????????????## ######### #???????????????????# | | ??????????????#?????????# #???????????????????# | | ????????????????????????# #???????????????????# | | ????????????????????????? #???????????????????? | | ??????????????????????????? #???????????????????? | | ???????????????????????????? #???????????????????? | | ???????????????????????????? #???????????????????? | | ?????????????????????????????????????????????????? | | ??????????????????????X??????????????????????????? | | ?????????????????????????????????????????????????? | | ?????????????????????????????????????????????????? | | ?????????????????????????????????????????????????? | | ?????????????????????????????????????????????????? | | ?????????????????????????????????????????????????? | | ?????????????????????????????????????????????????? | | ?????????????????????????????????????????????????? | | ?????????????????????????????????????????????????? | | ?????????????????????????????????????????????????? | | ?????????????????????????????????????????????????? | +----------------------------------------------------+ Best States ------------- Heat Dissipation 28 Energy Generation 10 Energy Capacity 250 Matter Stores 300 Matter Capacity 300 Sight Range 16 Robot Scan Range 15 Terrain Scan Density 10 Evasion (%) 40 Targeting Accuracy 5 Recoil Reduction 2 Item Schematics ----------------- None Robot Schematics ------------------ None Fabricated ------------ Nothing Alien Tech Used ----------------- None Achievements -------------- Use The Force Challenges ------------ None Game ------ Seed GunSwarmLauncher Manual? 0 Play Time 00:24:05 Cumulative 9.4 hours Start 2024.07.03 @ 14:17:41 End 2024.07.03 @ 14:40:45 Sessions 1 Manual Loads 0 Difficulty Rogue Special Mode None Game No. 11 Rogue 11 Adventurer 0 Explorer 0 Win Type - Total 0 Types 0/0/0/0/0/0/0/0/0 Lore% 11 Gallery% 15 Achievement% 13 Wizard Run 0 Options --------- Layout 0 ASCII 0 Keyboard 0 Movement Mouse Keybinds 0 Fullscreen 2 Font 24/Smallcaps Map View 76x50 Zoom Use 0% Tactical HUD 1 Map Filters NONE Filters NONE Steam 1 RUN: cf802b26-5635-44c7-b0a9-5385ab5ee270